fUSD/lending_fUSD_20240324
["ID","MTS","AMOUNT","RATE_DAILY","PERIOD"]
[320317600,1711287052240,-736.65,0.00019452,2]
[320317601,1711287052250,-1247.46,0.00019452,2]
[320317602,1711287052259,-500.0,0.00019452,2]
[320317603,1711287052268,-500.0,0.00019452,2]
[320317604,1711287052277,-500.0,0.00019452,2]
[320317605,1711287052288,-462.59,0.00019452,2]
[320317606,1711287052298,-500.0,0.00019452,2]
[320317607,1711287052307,-500.0,0.00019452,2]
[320317608,1711287052316,-500.0,0.00019452,2]
[320317609,1711287052325,-1218.99,0.00019452,2]
[320317610,1711287052335,-748.0,0.00019452,2]
[320317611,1711287052344,-500.0,0.00019452,2]
[320317612,1711287052353,-545.3529025,0.00019452,2]
[320317613,1711287052363,-500.0,0.00019452,2]
[320317614,1711287052373,-500.0,0.00019452,2]
[320317615,1711287052382,-500.0,0.00019452,2]
[320317616,1711287052392,-500.0,0.00019452,2]
[320317617,1711287052401,-500.0,0.00019452,2]
[320317618,1711287052411,-669.34,0.00019452,2]
[320317619,1711287052420,-500.0,0.00019452,2]
[320317620,1711287052430,-500.0,0.00019452,2]
[320317621,1711287052439,-540.91,0.00019452,2]
[320317622,1711287052448,-500.0,0.00019452,2]
[320317623,1711287052457,-1318.32,0.00019452,2]
[320317624,1711287052466,-703.39,0.00019452,2]
[320317625,1711287052475,-500.0,0.00019452,2]
[320317626,1711287052485,-3186.91,0.00019452,2]
[320317627,1711287052494,-509.31,0.00019452,2]
[320317628,1711287052503,-500.0,0.00019452,2]
[320317629,1711287052512,-636.56,0.00019452,2]
[320317630,1711287052521,-153.32,0.00019452,2]
[320317631,1711287052533,-500.0,0.00019452,2]
[320317632,1711287052542,-500.0,0.00019452,2]
[320317633,1711287052550,-500.0,0.00019452,2]
[320317634,1711287052560,-500.0,0.00019452,2]
[320317635,1711287052568,-500.0,0.00019452,2]
[320317636,1711287052577,-500.0,0.00019452,2]
[320317637,1711287052586,-500.0,0.00019452,2]
[320317638,1711287052595,-500.0,0.00019452,2]
[320317639,1711287052604,-500.0,0.00019452,2]
[320317640,1711287052613,-581.49,0.00019452,2]
[320317641,1711287052622,-780.35,0.00019452,2]
[320317642,1711287052632,-500.0,0.00019452,2]
[320317643,1711287052642,-500.0,0.00019452,2]
[320317644,1711287052652,-500.0,0.00019452,2]
[320317645,1711287052662,-1658.07,0.00019452,2]
[320317646,1711287052671,-756.76,0.00019452,2]
[320317647,1711287052680,-500.0,0.00019452,2]
[320317648,1711287052690,-265.14,0.00019452,2]
[320317649,1711287052699,-500.0,0.00019452,2]
[320317650,1711287052710,-1043.82,0.00019452,2]
[320317651,1711287052720,-629.17,0.00019452,2]
[320317652,1711287052730,-255.66511186,0.00019452,2]
[320317653,1711287052740,-2006.46,0.00019452,2]
[320317654,1711287052749,-1663.05,0.00019452,2]
[320317655,1711287052758,-500.0,0.00019452,2]
[320317656,1711287052767,-521.95,0.00019452,2]
[320317657,1711287052777,-890.24,0.00019452,2]
[320317658,1711287052787,-500.0,0.00019452,2]
[320317659,1711287052797,-500.0,0.00019452,2]
[320317660,1711287052806,-500.0,0.00019452,2]
[320317661,1711287052815,-500.0,0.00019452,2]
[320317662,1711287052825,-2142.18,0.00019452,2]
[320317663,1711287052834,-1365.76,0.00019452,2]
[320317664,1711287052843,-11726.85,0.00019452,2]
[320317665,1711287052852,-500.0,0.00019452,2]
[320317666,1711287052862,-500.0,0.00019452,2]
[320317667,1711287052871,-2349.59,0.00019452,2]
[320317668,1711287052880,-1270.85,0.00019452,2]
[320317669,1711287052889,-500.0,0.00019452,2]
[320317670,1711287052898,-2415.59,0.00019452,2]
[320317671,1711287052907,-971.03,0.00019452,2]
[320317672,1711287052917,-1410.46,0.00019452,2]
[320317673,1711287052926,-500.0,0.00019452,2]
[320317674,1711287052936,-500.0,0.00019452,2]
[320317675,1711287052946,-857.73,0.00019452,2]
[320317676,1711287052955,-344.84337205,0.00019452,2]
[320317677,1711287052964,-500.0,0.00019452,2]
[320317678,1711287052974,-3343.4,0.00019452,2]
[320317679,1711287052983,-1172.24,0.00019452,2]
[320317680,1711287052992,-2102.34,0.00019452,2]
[320317681,1711287053002,-616.5,0.00019452,2]
[320317682,1711287053013,-500.0,0.00019452,2]
[320317683,1711287053023,-500.0,0.00019452,2]
[320317684,1711287053033,-500.0,0.00019452,2]
[320317685,1711287053044,-500.0,0.00019452,2]
[320317686,1711287053057,-169.18,0.00019452,2]
[320317687,1711287053068,-1174.68,0.00019452,2]
[320317688,1711287053077,-864.31,0.00019452,2]
[320317689,1711287053087,-1886.66,0.00019452,2]
[320317690,1711287053097,-500.0,0.00019452,2]
[320317691,1711287053106,-366.5,0.00019452,2]
[320317692,1711287053115,-8519.48,0.00019452,2]
[320317693,1711287053125,-500.0,0.00019452,2]
[320317694,1711287053134,-500.0,0.00019452,2]
[320317695,1711287053144,-1123.54,0.00019452,2]
[320317696,1711287053207,-500.0,0.00019452,2]
[320317697,1711287053217,-600.35,0.00019452,2]
[320317698,1711287053226,-917.26,0.00019452,2]
[320317699,1711287053235,-500.0,0.00019452,2]
[320317700,1711287053247,-500.0,0.00019452,2]
[320317701,1711287053256,-500.0,0.00019452,2]
[320317702,1711287053266,-500.0,0.00019452,2]
[320317703,1711287053276,-500.0,0.00019452,2]
[320317704,1711287053286,-500.0,0.00019452,2]
[320317705,1711287053295,-1325.5,0.00019452,2]
[320317706,1711287053307,-500.0,0.00019452,2]
[320317707,1711287053317,-947.38,0.00019452,2]
[320317708,1711287053326,-500.0,0.00019452,2]
[320317709,1711287053335,-2508.97,0.00019452,2]
[320317710,1711287053344,-1143.9,0.00019452,2]
[320317711,1711287053354,-500.0,0.00019452,2]
[320317712,1711287053364,-500.0,0.00019452,2]
[320317713,1711287053373,-4414.51,0.00019452,2]
[320317714,1711287053382,-500.0,0.00019452,2]
[320317715,1711287053390,-500.0,0.00019452,2]
[320317716,1711287053399,-500.0,0.00019452,2]
[320317717,1711287053409,-500.0,0.00019452,2]
[320317718,1711287053419,-500.0,0.00019452,2]
[320317719,1711287053429,-557.61,0.00019452,2]
[320317720,1711287053439,-261.77,0.00019452,2]
[320317721,1711287053449,-500.99,0.00019452,2]
[320317722,1711287053459,-500.0,0.00019452,2]
[320317723,1711287053468,-500.0,0.00019452,2]
[320317724,1711287053477,-500.0,0.00019452,2]
[320317725,1711287053486,-1162.47,0.00019452,2]
[320317726,1711287053495,-500.0,0.00019452,2]
[320317727,1711287053504,-1390.43,0.00019452,2]
[320317728,1711287053514,-1096.27,0.00019452,2]
[320317729,1711287053524,-1631.0,0.00019452,2]
[320317730,1711287053534,-342.94,0.00019452,2]
[320317731,1711287053543,-509.31820033,0.00019452,2]
[320317732,1711287053552,-500.0,0.00019452,2]
[320317733,1711287053562,-500.0,0.00019452,2]
[320317734,1711287053571,-500.0,0.00019452,2]
[320317735,1711287053580,-500.0,0.00019452,2]
[320317736,1711287053589,-866.33,0.00019452,2]
[320317737,1711287053598,-1304.44,0.00019452,2]
[320317738,1711287053607,-500.0,0.00019452,2]
[320317739,1711287053617,-540.02,0.00019452,2]
[320317740,1711287053627,-500.0,0.00019452,2]
[320317741,1711287053637,-293.4,0.00019452,2]
[320317742,1711287053646,-506.28979077,0.00019452,2]
[320317743,1711287053657,-687.26,0.00019452,2]
[320317744,1711287053666,-500.0,0.00019452,2]
[320317745,1711287053675,-500.0,0.00019452,2]
[320317746,1711287053684,-542.23367883,0.00019452,2]
[320317747,1711287053693,-500.0,0.00019452,2]
[320317748,1711287053703,-514.87,0.00019452,2]
[320317749,1711287053712,-500.0,0.00019452,2]
[320317750,1711287053720,-2405.07,0.00019452,2]
[320317751,1711287053730,-500.0,0.00019452,2]
[320317752,1711287053739,-500.0,0.00019452,2]
[320317753,1711287053749,-500.0,0.00019452,2]
[320317754,1711287053759,-500.0,0.00019452,2]
[320317755,1711287053768,-530.52,0.00019452,2]
[320317756,1711287053776,-500.0,0.00019452,2]
[320317757,1711287053786,-478.77,0.00019452,2]
[320317758,1711287053796,-514.47860101,0.00019452,2]
[320317759,1711287053806,-593.08,0.00019452,2]
[320317760,1711287053816,-3179.35,0.00019452,2]
[320317761,1711287053826,-500.0,0.00019452,2]
[320317762,1711287053836,-245.01882535,0.00019452,2]
[320317763,1711287053846,-176479.24986691,0.00019454,2]
[320317764,1711287053856,-150.0,0.00019456,2]
[320317765,1711287053865,-1622.72454797,0.00019459,2]
[320317766,1711287053875,-150.0,0.00019459,2]
[320317767,1711287053884,-150.0,0.00019459,2]
[320317768,1711287053893,-150.0,0.0001946,2]
[320317769,1711287053902,-150.0,0.0001946,2]
[320317770,1711287053911,-150.0,0.00019461,2]
[320317771,1711287053920,-441.19812476,0.00019461,2]
[320317772,1711287053930,-150.0,0.00019462,2]
[320317773,1711287053939,-155676.6280016,0.00019463,2]
[320317774,1711287053948,-245.01882535,0.00019464,2]
[320317775,1711287053958,-150.0,0.00019464,2]
[320317776,1711287053967,-154.41934367,0.00019464,2]
[320317777,1711287053977,-767.14723537,0.00019465,2]
[320317778,1711287053986,-1622.72454797,0.00019465,2]
[320317779,1711287053995,-7783.83140017,0.00019467,2]
[320317780,1711287054005,-245.01882535,0.00019469,2]
[320317781,1711287054014,-150.0,0.00019469,2]
[320317782,1711287054023,-150.0,0.0001947,2]
[320317783,1711287054033,-154.41934367,0.0001947,2]
[320317784,1711287054041,-150.0,0.00019473,2]
[320317785,1711287054051,-489.72067882,0.00019474,2]
[320317786,1711287054061,-150.0,0.00019475,2]
[320317787,1711287054070,-150.0,0.00019478,2]
[320317788,1711287054081,-489.72067882,0.00019478,2]
[320317789,1711287054090,-150.0,0.00019479,2]
[320317790,1711287054099,-389.19157009,0.00019481,2]
[320317791,1711287054108,-150.0,0.00019481,2]
[320317792,1711287054118,-7783.83140017,0.00019482,2]
[320317793,1711287054127,-261.48542701,0.00019483,2]
[320317794,1711287054136,-767.14723537,0.00019484,2]
[320317795,1711287054146,-441.19812476,0.00019484,2]
[320317796,1711287054158,-150.0,0.00019484,2]
[320317797,1711287054167,-150.0,0.00019486,2]
[320317798,1711287054175,-171.40223759,0.00019486,2]
[320317799,1711287054184,-389.19157009,0.00019489,2]
[320317800,1711287054193,-150.0,0.00019489,2]
[320317801,1711287054203,-150.0,0.0001949,2]
[320317802,1711287054212,-8823.96249343,0.00019491,2]
[320317803,1711287054221,-150.0,0.00019494,2]
[320317804,1711287054230,-150.0,0.00019494,2]
[320317805,1711287054239,-171.40223759,0.00019495,2]
[320317806,1711287054248,-150.0,0.00019495,2]
[320317807,1711287054257,-150.0,0.00019497,2]
[320317808,1711287054267,-150.0,0.00019497,2]
[320317809,1711287054276,-150.0,0.00019497,2]
[320317810,1711287054286,-150.0,0.00019498,2]
[320317811,1711287054295,-8823.96249343,0.00019499,2]
[320317812,1711287054304,-1500.0,0.000195,2]
[320317813,1711287054315,-198.1290461,0.00019503,2]
[320317814,1711287054324,-180.0,0.00019504,2]
[320317815,1711287054333,-150.0,0.00019507,2]
[320317816,1711287054342,-800.0,0.00019507,2]
[320317817,1711287054353,-500.0,0.00019513,2]
[320317818,1711287054363,-1000.0,0.00019513,2]
[320317819,1711287054372,-150.0,0.00019516,2]
[320317820,1711287054382,-150.0,0.00019517,2]
[320317821,1711287054391,-150.0,0.00019517,2]
[320317822,1711287054401,-150.0,0.00019519,2]
[320317823,1711287054411,-150.0,0.00019519,2]
[320317824,1711287054420,-150.0,0.00019523,2]
[320317825,1711287054430,-150.0,0.00019534,2]
[320317826,1711287054439,-150.0,0.0001954,2]
[320317827,1711287054449,-150.0,0.0001954,2]
[320317828,1711287054459,-150.0,0.00019546,2]
[320317829,1711287054468,-170.18445164,0.00019553,2]
[320317830,1711287054478,-150.0,0.00019553,2]
[320317831,1711287054487,-150.0,0.00019554,2]
[320317832,1711287054496,-150.0,0.00019555,2]
[320317833,1711287054505,-150.0,0.00019555,2]
[320317834,1711287054515,-262.99,0.00019561,2]
[320317835,1711287054525,-150.0,0.00019565,2]
[320317836,1711287054536,-150.0,0.00019568,2]
[320317837,1711287054545,-200.0,0.00019572,2]
[320317838,1711287054555,-800.0,0.00019572,2]
[320317839,1711287054564,-500.0,0.00019572,2]
[320317840,1711287054573,-200.0,0.00019572,2]
[320317841,1711287054584,-150.0,0.00019576,2]
[320317842,1711287054596,-150.0,0.00019579,2]
[320317843,1711287054605,-150.0,0.0001958,2]
[320317844,1711287054616,-150.0,0.0001958,2]
[320317845,1711287054626,-150.0,0.00019582,2]
[320317846,1711287054636,-150.0,0.00019583,2]
[320317847,1711287054646,-150.0,0.00019586,2]
[320317848,1711287054657,-150.0,0.00019589,2]
[320317849,1711287054666,-150.0,0.00019591,2]
[320317850,1711287054675,-150.0,0.00019592,2]
[320317851,1711287054684,-407.12895338,0.00019598,2]
[320317852,1711287054693,-3844.69079607,0.00019599,2]
[320317853,1711287054702,-155.0,0.00019599,2]
[320317854,1711287054713,-150.0,0.00019599,2]
[320317855,1711287054724,-13616.039626,0.000196,2]
[320317856,1711287054735,-729201.37858456,0.000196,2]
[320317857,1711287055070,-9896.46653373,0.000196,2]
[320317858,1711287055082,-1391.97619078,0.000196,2]
[320317859,1711287055898,-249.68204252,0.00017997,2]
[320317860,1711287055910,-222.91387717,0.00017997,2]
[320317861,1711287055922,-500.0,0.00019178,2]
[320317862,1711287055933,-279.20346032,0.00019178,2]
[320317863,1711287055943,-500.0,0.00019178,2]
[320317864,1711287055954,-500.0,0.00019178,2]
[320317865,1711287055966,-500.0,0.00019178,2]
[320317866,1711287055977,-500.0,0.00019178,2]
[320317867,1711287055988,-500.0,0.00019178,2]
[320317868,1711287055999,-500.0,0.00019452,2]
[320317869,1711287056010,-500.0,0.00019452,2]
[320317870,1711287056021,-634.53,0.00019452,2]
[320317871,1711287056032,-83406.91558305,0.000196,2]
[320317872,1711287056051,-1168.4,0.000196,2]
[320317873,1711287057879,50604.17245679,0.00015033,2]
[320317874,1711287564446,274.13,0.00015138,2]
[320317875,1711288031402,277.46,0.00014495,2]
[320317934,1711288231959,-2102.83,0.00016347,2]
[320317936,1711288231969,-400.0,0.00016353,2]
[320317937,1711288231979,-1000.0,0.00016384,2]
[320317938,1711288231988,-406.02897819,0.00016384,2]
[320317939,1711288231998,-484.31503574,0.00016385,2]
[320317941,1711288232007,-1360.97,0.00016386,2]
[320317942,1711288232017,-2694.78,0.00016398,2]
[320317944,1711288232026,-10005.93,0.00016438,2]
[320317946,1711288232036,-12135.34,0.00016451,2]
[320317948,1711288232046,-362.87,0.00016451,2]
[320317950,1711288232055,-231.99,0.00016589,2]
[320317951,1711288232064,-273.19,0.00016631,2]
[320317953,1711288232073,-500.0,0.00016637,2]
[320317954,1711288232082,-250.0,0.00016682,2]
[320317955,1711288232091,-157.17,0.00016698,2]
[320317956,1711288232102,-850.26,0.00016698,2]
[320317957,1711288232111,-165.6,0.00016729,2]
[320317958,1711288232126,-443.73,0.00016729,2]
[320317959,1711288232136,-277.46,0.00016759,2]
[320317960,1711288232145,-250.0,0.00016763,2]
[320317961,1711288232154,-18709.79,0.0001678,2]
[320317962,1711288232164,-157.17,0.00016872,2]
[320317963,1711288232174,-600.0,0.00016879,2]
[320317964,1711288232183,-157.17,0.00017046,2]
[320317965,1711288232195,-5249.21567509,0.00017092,2]
[320317966,1711288232205,-157.17,0.0001722,2]
[320317967,1711288232214,-157.17,0.00017394,2]
[320317968,1711288232224,-158.51,0.00017515,2]
[320317969,1711288232234,-157.17,0.00017568,2]
[320317970,1711288232243,-164.07,0.00017686,2]
[320317971,1711288232253,-150.0,0.0001774,2]
[320317972,1711288232263,-500.78599088,0.00017798,2]
[320317973,1711288232272,-7387.124,0.00017798,2]
[320317974,1711288232282,-218.8814,0.00017798,2]
[320317975,1711288232292,-4364.878,0.00017798,2]
[320317976,1711288232301,-158.0,0.00017835,2]
[320317977,1711288232310,-885.2,0.00017888,3]
[320317978,1711288232320,-4716.0918478,0.00017896,2]
[320317979,1711288232330,-303.49921518,0.00017896,2]
[320317980,1711288232340,-1243.3653,0.00017896,2]
[320317981,1711288232349,-1762.92664564,0.00017896,2]
[320317982,1711288232362,-407.18600033,0.00017897,2]
[320317983,1711288232372,-30793.10725012,0.00017897,2]
[320317984,1711288232383,-245000.0,0.00017898,2]
[320317985,1711288232392,-500.0,0.00017898,2]
[320317986,1711288232403,-588.6021,0.00017898,2]
[320317987,1711288232414,-49250.6514,0.00017898,2]
[320317988,1711288232428,-1236.45752357,0.000179,2]
[320317989,1711288232438,-1236.45752342,0.00017908,2]
[320317990,1711288232448,-167.52,0.00017975,2]
[320317991,1711288232459,-150.0,0.00017975,2]
[320317992,1711288232469,-150.0,0.00017975,2]
[320317993,1711288232479,-150.0,0.00017975,2]
[320317994,1711288232489,-150.0,0.00017975,2]
[320317995,1711288232499,-150.0,0.00017975,2]
[320317996,1711288232510,-150.0,0.00017975,2]
[320317997,1711288232520,-150.0,0.00017975,2]
[320317998,1711288232529,-150.0,0.00017975,2]
[320317999,1711288232539,-155.01870001,0.00017975,2]
[320318000,1711288232549,-300.0,0.00017999,2]
[320318001,1711288232558,-300.0,0.00017999,2]
[320318002,1711288232572,-300.0,0.00017999,2]
[320318003,1711288232582,-300.0,0.00017999,2]
[320318004,1711288232591,-300.0,0.00017999,2]
[320318005,1711288232600,-300.0,0.00017999,2]
[320318006,1711288232611,-300.0,0.00017999,2]
[320318007,1711288232620,-300.0,0.00017999,2]
[320318008,1711288232630,-301.88485835,0.00017999,2]
[320318009,1711288232640,-1236.45752342,0.00018018,2]
[320318010,1711288232650,-500.78599082,0.00018098,2]
[320318011,1711288232660,-1236.45752342,0.00018127,2]
[320318012,1711288232669,-1236.45752342,0.00018237,2]
[320318013,1711288232679,-150.0,0.00018261,2]
[320318014,1711288232689,-1236.45752342,0.00018347,2]
[320318015,1711288232698,-400.0,0.00018397,2]
[320318016,1711288232708,-500.78599082,0.00018398,2]
[320318017,1711288232718,-3569.0,0.000184,2]
[320318018,1711288232728,-729.0,0.000184,2]
[320318019,1711288232738,-1022.70925805,0.00018457,2]
[320318020,1711288232753,-213.74826537,0.00018457,2]
[320318023,1711288232763,-196.19869264,0.00018543,2]
[320318025,1711288232773,-150.0,0.00018546,2]
[320318026,1711288232783,-1236.45752342,0.00018567,2]
[320318028,1711288232792,-78.98283516,0.00018584,2]
[320318030,1711288232804,-75.69931794,0.00018584,2]
[320318032,1711288232814,-150.0,0.00018641,2]
[320318034,1711288232824,-164.07,0.00018659,2]
[320318036,1711288232834,-236.47187495,0.00018667,2]
[320318038,1711288232847,-1236.45752342,0.00018676,2]
[320318040,1711288232858,-71.54248548,0.00018688,2]
[320318042,1711288232871,-521.97670531,0.00018688,2]
[320318045,1711288232892,-144.88269411,0.00018688,2]
[320318047,1711288232901,-500.78599082,0.00018698,2]
[320318049,1711288232911,-273.19,0.0001871,2]
[320318051,1711288232920,-198.92222737,0.00018713,2]
[320318052,1711288232930,-236.47187495,0.00018736,2]
[320318054,1711288232940,-158.0,0.00018747,2]
[320318056,1711288232949,-152.91709921,0.00018758,2]
[320318058,1711288232959,-194.11260488,0.00018786,2]
[320318060,1711288232969,-1236.45752342,0.00018786,2]
[320318062,1711288232979,-813.48097287,0.00018788,2]
[320318064,1711288232988,-177.21649391,0.00018817,2]
[320318066,1711288232998,-150.0,0.00018831,2]
[320318068,1711288233008,-865.9665723,0.00018896,2]
[320318070,1711288233020,-370.49095112,0.00018896,2]
[320318072,1711288233029,-79.54612188,0.000189,2]
[320318079,1711288233100,-176.24307156,0.000189,2]
[320318081,1711288233111,-216.54692844,0.0001891,2]
[320318087,1711288233172,-539.3645168,0.0001891,2]
[320318089,1711288233184,-244.08855476,0.0001891,2]
[320318091,1711288233194,-1000.0,0.0001892,2]
[320318093,1711288233204,-1000.0,0.0001893,2]
[320318095,1711288233213,-194.11260488,0.00018932,2]
[320318097,1711288233223,-1000.0,0.0001894,2]
[320318099,1711288233232,-917.69357917,0.0001895,2]
[320318101,1711288233249,-82.30642083,0.0001895,2]
[320318103,1711288233258,-202.19061335,0.00018961,2]
[320318105,1711288233270,-2645.37690005,0.00018961,2]
[320318107,1711288233282,-1920.4324866,0.00018961,2]
[320318109,1711288233292,-207.0,0.00018961,2]
[320318111,1711288233301,-243.196,0.00018961,2]
[320318113,1711288233311,-28554.53771014,0.00018961,2]
[320318115,1711288233322,-114.20428986,0.00018961,2]
[320318117,1711288233332,-159.0,0.00018961,2]
[320318119,1711288233341,-159.956,0.00018961,2]
[320318121,1711288233350,-28.41623259,0.00018961,2]
[320318125,1711288233380,-221.58376741,0.00018961,2]
[320318126,1711288233389,-265.275,0.00018961,2]
[320318128,1711288233400,-264.07364447,0.00018961,2]
[320318131,1711288233421,-387.5809215,0.00018961,2]
[320318133,1711288233433,-393.34543403,0.00018961,2]
[320318135,1711288233443,-193.0,0.00018961,2]
[320318137,1711288233453,-236.47187495,0.00018963,2]
[320318139,1711288233463,-1000.0,0.0001897,2]
[320318141,1711288233473,-1000.0,0.0001898,2]
[320318143,1711288233482,-600.0,0.00018989,2]
[320318145,1711288233493,-500.78599082,0.00018998,2]
[320318147,1711288233504,-1778.86506885,0.00019,2]
[320318149,1711288233516,-10240.55461319,0.00019,2]
[320318152,1711288233532,-3524.77774132,0.00019,2]
[320318651,1711288238010,-250.0,0.00018153,2]
[320318656,1711288238021,-4045.9824655,0.00019,2]
[320318661,1711288238032,-22416.61493547,0.00019,2]
[320318667,1711288238043,-22916.59509998,0.00019,2]
[320318673,1711288238055,-44246.38102882,0.00019,2]
[320318715,1711288238184,-207513.95728706,0.00019,2]
[320318718,1711288238193,-80059.09,0.00019,2]
[320318721,1711288238203,-1000.0,0.00019,2]
[320318724,1711288238212,-1467.60065329,0.00019,2]
[320318727,1711288238221,-1250.0,0.00019,3]
[320318730,1711288238231,-1236.45752342,0.00019006,2]
[320318733,1711288238240,-252.62944061,0.0001902,2]
[320318736,1711288238249,-277.46,0.00019023,2]
[320318739,1711288238259,-252.62944061,0.00019043,2]
[320318744,1711288238276,-3211.5831,0.00019078,2]
[320318747,1711288238286,-255.78919344,0.00019082,2]
[320318750,1711288238295,-2102.83,0.00019087,2]
[320318751,1711288238305,-1236.45752342,0.00019115,2]
[320318753,1711288238314,-150.0,0.00019117,2]
[320318754,1711288238324,-160.0587475,0.00019129,2]
[320318756,1711288238334,-152.08525187,0.00019147,2]
[320318758,1711288238344,-800.0,0.00019151,2]
[320318760,1711288238353,-800.0,0.00019151,2]
[320318762,1711288238364,-160.07391968,0.00019152,2]
[320318764,1711288238373,-255.88496955,0.00019176,2]
[320318766,1711288238383,-204.60113174,0.00019176,2]
[320318768,1711288238392,-1885.14604768,0.00019177,2]
[320318770,1711288238404,-567.0,0.00019178,2]
[320318772,1711288238414,-500.0,0.00019178,2]
[320318774,1711288238424,-500.0,0.00019178,2]
[320318776,1711288238434,-501.12778898,0.00019178,2]
[320318778,1711288238443,-500.0,0.00019178,2]
[320318780,1711288238453,-500.0,0.00019178,2]
[320318782,1711288238463,-500.0,0.00019178,2]
[320318784,1711288238473,-500.0,0.00019178,2]
[320318786,1711288238482,-500.0,0.00019178,2]
[320318788,1711288238492,-561.14308393,0.00019178,2]
[320318790,1711288238502,-500.0,0.00019178,2]
[320318792,1711288238512,-500.0,0.00019178,2]
[320318794,1711288238521,-341.22892477,0.00019178,2]
[320318796,1711288238531,-500.0,0.00019178,2]
[320318798,1711288238540,-500.0,0.00019178,2]
[320318800,1711288238549,-500.0,0.00019178,2]
[320318802,1711288238559,-431.78610964,0.00019178,2]
[320318804,1711288238567,-500.0,0.00019178,2]
[320318806,1711288238577,-500.0,0.00019178,2]
[320318808,1711288238587,-303.04300339,0.00019178,2]
[320318810,1711288238596,-580.0,0.00019178,2]
[320318812,1711288238606,-235.10614517,0.00019178,2]
[320318814,1711288238615,-500.0,0.00019178,2]
[320318815,1711288238624,-500.0,0.00019178,2]
[320318818,1711288238634,-500.0,0.00019178,2]
[320318820,1711288238644,-153.45815145,0.00019178,2]
[320318821,1711288238655,-154.58078736,0.00019178,2]
[320318823,1711288238664,-584.90521243,0.00019178,2]
[320318825,1711288238673,-500.0,0.00019178,2]
[320318827,1711288238682,-500.0,0.00019178,2]
[320318829,1711288238691,-500.0,0.00019178,2]
[320318831,1711288238700,-500.0,0.00019178,2]
[320318833,1711288238709,-501.72051095,0.00019178,2]
[320318835,1711288238718,-500.0,0.00019178,2]
[320318837,1711288238727,-501.74988258,0.00019178,2]
[320318839,1711288238736,-500.0,0.00019178,2]
[320318841,1711288238745,-500.0,0.00019178,2]
[320318843,1711288238754,-500.0,0.00019178,2]
[320318844,1711288238764,-505.6282185,0.00019178,2]
[320318846,1711288238773,-500.0,0.00019178,2]
[320318848,1711288238782,-502.19893148,0.00019178,2]
[320318850,1711288238791,-376.11289313,0.00019178,2]
[320318852,1711288238800,-500.0,0.00019178,2]
[320318854,1711288238809,-500.0,0.00019178,2]
[320318856,1711288238819,-503.95805965,0.00019178,2]
[320318857,1711288238828,-500.0,0.00019178,2]
[320318858,1711288238838,-500.0,0.00019178,2]
[320318859,1711288238848,-500.0,0.00019178,2]
[320318860,1711288238857,-502.25522026,0.00019178,2]
[320318861,1711288238866,-500.0,0.00019178,2]
[320318863,1711288238876,-500.0,0.00019178,2]
[320318865,1711288238885,-500.0,0.00019178,2]
[320318867,1711288238894,-500.0,0.00019178,2]
[320318869,1711288238903,-500.0,0.00019178,2]
[320318871,1711288238912,-500.0,0.00019178,2]
[320318873,1711288238921,-500.0,0.00019178,2]
[320318875,1711288238931,-500.0,0.00019178,2]